bitfinex/quotes_SOLUSD_20260214
["timestamp","ask_amount","ask_price","bid_price","bid_amount"]
[1771066573068,0.48144224,85.832,85.811,0.46721095]
[1771066573575,12.13102285,85.84,85.812,11.65338181]
[1771066573879,11.64958061,85.84,85.821,0.46721095]
[1771066574044,18.55429059,85.842,85.831,0.46721095]
[1771066583350,0.2,85.9,85.83,3.47888534]
[1771066583567,0.5,85.86,85.83,3.47888534]
[1771066584651,0.5,85.858,85.83,3.47888534]
[1771066585470,0.5,85.858,85.831,11.65080215]
[1771066585776,0.5,85.856,85.831,11.65080215]
[1771066587472,0.5,85.856,85.823,11.65188818]
[1771066587676,0.5,85.856,85.83,3.47888534]
[1771066591395,0.5,85.856,85.831,11.65080215]
[1771066600985,0.5,85.856,85.83,3.47677625]
[1771066603797,0.5,85.854,85.831,11.65080215]
[1771066608407,0.5,85.854,85.827,11.65133357]
[1771066608600,0.5,85.854,85.83,3.47677625]
[1771066609574,0.5,85.852,85.83,3.47677625]
[1771066611591,0.5,85.85,85.83,3.47677625]
[1771066613784,0.5,85.848,85.83,3.47677625]
[1771066615393,52.36,85.875,85.84,3.47677625]
[1771066615591,52.36,85.875,85.85,3.47677625]
[1771066615592,0.5,85.872,85.85,3.47677625]
[1771066616297,0.5,85.872,85.842,11.64925205]
[1771066616598,0.5,85.87,85.833,11.65047308]
[1771066617280,40.75786335,85.873,85.833,11.65047308]
[1771066617281,52.4,85.869,85.833,11.65047308]
[1771066617608,0.5,85.868,85.833,11.65047308]
[1771066619400,0.5,85.866,85.833,11.65047308]
[1771066621611,0.5,85.864,85.833,11.65047308]
[1771066623584,0.5,85.862,85.83,3.47677625]
[1771066624508,0.5,85.862,85.831,11.65080215]
[1771066626601,11.64673134,85.861,85.831,11.65080215]
[1771066626791,0.5,85.86,85.831,11.65080215]
[1771066627717,3.97677625,85.86,85.823,11.65187012]
[1771066627885,52.46,85.859,85.823,11.65187012]
[1771066628087,0.5,85.858,85.823,11.65187012]
[1771066629206,52.46,85.859,85.823,11.65187012]
[1771066629207,0.5,85.856,85.823,11.65187012]
[1771066629501,0.5,85.854,85.823,11.65187012]
[1771066630203,0.5,85.852,85.823,11.65187012]
[1771066631206,0.5,85.85,85.823,11.65187012]
[1771066634693,11.64835932,85.849,85.823,11.65187012]
[1771066634898,0.5,85.848,85.823,11.65187012]
[1771066636912,11.6486307,85.847,85.823,11.65187012]
[1771066637109,0.5,85.846,85.823,11.65187012]
[1771066658835,11.64890209,85.845,85.823,11.65187012]
[1771066659028,0.5,85.844,85.823,11.65187012]
[1771066660952,0.5,85.844,85.82,3.47730518]
[1771066663539,0.5,85.844,85.821,11.65215972]
[1771066680746,11.64890209,85.845,85.83,3.47730518]
[1771066681845,0.5,85.845,85.82,3.47730518]
[1771066685831,0.5,85.845,85.82,15.12948446]
[1771066685832,0.5,85.844,85.82,15.12948446]
[1771066688751,0.5,85.842,85.82,15.12948446]
[1771066717873,0.5,85.842,85.83,3.47730518]
[1771066718891,0.5,85.842,85.82,3.47730518]
[1771066719268,0.5,85.84,85.82,3.47730518]
[1771066720688,0.5,85.84,85.83,3.47730518]
[1771066722092,11.64841179,85.849,85.83,3.47730518]
[1771066722990,29.11682836,85.861,85.83,3.47730518]
[1771066722991,29.11682836,85.861,85.83,3.47682254]
[1771066723988,0.46963791,85.858,85.84,3.47682254]
[1771066724195,0.46963791,85.864,85.85,3.47682254]
[1771066735293,0.46963791,85.868,85.85,3.47682254]
[1771066737405,0.46963791,85.866,85.85,3.47682254]
[1771066741308,0.46963791,85.866,85.85,3.93855473]
[1771066741714,0.46963791,85.866,85.85,3.47682254]
[1771066742596,0.4964529,85.87,85.86,3.47682254]
[1771066743907,0.4964529,85.875,85.86,3.47682254]
[1771066744127,0.4964529,85.875,85.861,0.46173219]
[1771066745623,0.4964529,85.874,85.861,0.46173219]
[1771066745797,11.64491566,85.875,85.861,0.46173219]
[1771066748618,0.4964529,85.875,85.861,0.46173219]
[1771066751223,0.4964529,85.888,85.861,0.46173219]
[1771066753813,0.4964529,85.886,85.871,0.46173219]
[1771066758542,0.4964529,85.891,85.871,0.46173219]
[1771066759028,0.4964529,85.891,85.861,0.46173219]
[1771066759718,0.4964529,85.891,85.87,3.47682254]
[1771066760626,0.4964529,85.889,85.87,3.47682254]
[1771066761313,0.4964529,85.889,85.868,0.46173219]
[1771066761537,0.4964529,85.889,85.85,3.47682254]
[1771066761713,0.4964529,85.889,85.848,62.11072417]
[1771066761914,0.4964529,85.879,85.848,61.64899198]
[1771066762137,3.47682254,85.88,85.848,61.64899198]
[1771066762138,0.4964529,85.877,85.848,61.64899198]
[1771066762634,0.4964529,85.875,85.842,0.46173219]
[1771066765630,0.4964529,85.873,85.842,0.46173219]
[1771066767138,0.4964529,85.871,85.84,11.64957631]
[1771066767429,0.4964529,85.871,85.841,0.46173219]
[1771066770830,0.4964529,85.869,85.84,15.12639885]
[1771066771433,0.4964529,85.869,85.84,15.58940046]
[1771066771746,0.4964529,85.869,85.841,0.46300161]
[1771066771917,0.4964529,85.869,85.85,3.47682254]
[1771066772318,0.4964529,85.869,85.851,0.46300161]
[1771066776035,53.34,85.875,85.851,0.46300161]
[1771066776331,3.47682254,85.88,85.842,0.46300161]
[1771066776542,53.4,85.874,85.842,0.46300161]
[1771066777135,82.51242052,85.874,85.842,0.46300161]
[1771066777333,29.11242052,85.874,85.842,0.46300161]
[1771066777638,53.4,85.873,85.842,0.46300161]
[1771066778133,0.4711605,85.87,85.842,0.46300161]
[1771066779734,11.64564627,85.869,85.842,0.46300161]
[1771066779936,0.4711605,85.868,85.842,0.46300161]
[1771066781235,29.11242052,85.874,85.842,0.46300161]
[1771066781236,0.48132853,85.866,85.842,0.46300161]
[1771066781541,0.44886307,85.866,85.843,0.47425211]
[1771066786642,0.44886307,85.866,85.845,0.47425211]
[1771066797054,0.48132853,85.864,85.839,0.47425211]
[1771066797259,0.44886324,85.864,85.835,0.47425211]
[1771066798349,11.64646005,85.863,85.835,0.47425211]
[1771066799139,0.48132853,85.862,85.835,0.47425211]
[1771066800362,53.82,85.871,85.832,0.47425211]
[1771066800543,53.82,85.871,85.841,0.47425211]
[1771066801236,11.64551065,85.87,85.841,0.47423203]
[1771066802261,0.45728782,85.867,85.843,0.47423203]
[1771066802568,0.45728782,85.867,85.838,0.47423203]
[1771066803588,0.45728782,85.865,85.838,0.47423203]
[1771066805742,0.45728782,85.863,85.838,0.47423203]
[1771066807153,0.45728782,85.863,85.834,0.47423203]
[1771066808348,0.45728782,85.861,85.834,0.47423203]
[1771066809762,0.45728782,85.861,85.836,0.47423203]
[1771066812866,0.45728782,85.859,85.836,0.47423203]
[1771066814250,0.45728782,85.857,85.836,0.47423203]
[1771066817172,0.45728782,85.857,85.83,3.47591353]
[1771066817173,0.45728782,85.857,85.837,11.64998776]
[1771066817354,0.45728782,85.857,85.838,0.47423203]
[1771066823280,0.45728782,85.87,85.84,0.47423203]
[1771066823452,29.11000404,85.882,85.841,0.47423203]
[1771066823453,0.45728782,85.877,85.841,0.47423203]
[1771066824669,11.644697,85.876,85.851,0.47423203]
[1771066824975,0.45728782,85.875,85.851,0.47423203]
[1771066826684,11.6449682,85.874,85.841,0.47423203]
[1771066826887,0.45728782,85.873,85.841,0.47423203]
[1771066827087,0.45728782,85.873,85.842,0.47423203]
[1771066831074,0.45728782,85.878,85.851,0.47521539]
[1771066831275,11.64429022,85.879,85.851,0.47521539]
[1771066831873,0.45728782,85.878,85.851,0.47521539]
[1771066832069,0.42234213,85.878,85.85,3.47591353]
[1771066832266,0.42234213,85.878,85.851,0.47521539]
[1771066834784,12.06690353,85.877,85.851,0.47521539]
[1771066836984,12.06690353,85.877,85.853,0.47521539]
[1771066838270,12.06690353,85.877,85.855,0.47521539]
[1771066839084,0.42234213,85.877,85.855,0.47521539]
[1771066839291,0.42234213,85.881,85.855,0.47521539]
[1771066841194,0.42234213,85.881,85.861,0.46273123]
[1771066844074,11.64390555,85.882,85.861,0.46273123]
[1771066844381,12.06570152,85.886,85.861,0.46273123]
[1771066844570,11.64335939,85.886,85.861,0.46273123]
[1771066844771,0.42234213,85.885,85.861,0.46273123]
[1771066845280,11.64361231,85.884,85.861,0.46273123]
[1771066846193,29.10526661,85.896,85.836,61.64899198]
[1771066846194,11.64212119,85.895,85.871,0.46273123]
[1771066846998,0.42234213,85.894,85.871,0.46273123]
[1771066851502,12.0647344,85.893,85.871,0.46273123]
[1771066851700,0.42234213,85.892,85.871,0.46273123]
[1771066856985,12.0650055,85.891,85.871,0.46273123]
[1771066859304,0.42234213,85.89,85.867,11.64590809]
[1771066859504,0.42234213,85.89,85.861,0.46273123]
[1771066860012,0.42234213,85.89,85.871,0.46273123]
[1771066863627,11.64157906,85.899,85.871,0.46273123]
[1771066863809,0.2,85.91,85.892,0.49712907]
[1771066864211,0.4616789,85.909,85.892,0.49712907]
[1771066864797,0.4616789,85.907,85.881,0.49712907]
[1771066865014,0.4616789,85.907,85.891,0.49712907]
[1771066867323,0.2,85.91,85.891,0.49712907]
[1771066867618,0.6616789,85.91,85.891,0.49712907]
[1771066868119,0.2,85.91,85.901,0.49712907]
[1771066868417,0.2,85.92,85.901,0.49712907]
[1771066868715,11.83738386,85.93,85.911,0.49712907]
[1771066868916,0.2,85.93,85.911,0.49712907]
[1771066869116,0.2,85.93,85.921,0.49712907]
[1771066869311,0.2,85.93,85.911,0.49712907]
[1771066869517,0.6616789,85.93,85.911,0.49712907]
[1771066870292,0.6616789,85.93,85.912,0.49712907]
[1771066870592,0.2,85.93,85.912,0.49712907]
[1771066871001,0.4616789,85.928,85.9,3.47452662]
[1771066871197,0.4616789,85.928,85.901,0.49712907]
[1771066871605,0.4616789,85.928,85.893,0.49712907]
[1771066872098,54.28,85.927,85.893,0.49712907]
[1771066872406,0.4616789,85.924,85.893,0.49712907]
[1771066873423,0.4616789,85.922,85.893,0.49712907]
[1771066874620,11.63859824,85.921,85.901,0.49712907]
[1771066876219,0.2,85.93,85.911,0.49712907]
[1771066877123,0.2,85.93,85.921,0.49712907]
[1771066877809,0.4616789,85.938,85.921,0.49712907]
[1771066879120,0.4616789,85.936,85.906,0.49712907]
[1771066880225,0.4616789,85.934,85.906,0.49712907]
[1771066881128,0.4616789,85.934,85.906,0.49712907]
[1771066881424,0.4616789,85.934,85.906,11.64058948]
[1771066881605,0.4616789,85.934,85.907,0.49712907]
[1771066883124,11.63697299,85.933,85.907,0.49712907]
[1771066883324,0.4616789,85.932,85.907,0.49712907]
[1771066886211,0.4616789,85.93,85.907,0.49712907]
[1771066886611,0.4616789,85.93,85.911,0.49712907]
[1771066887511,0.2,85.94,85.921,0.49712907]
[1771066889730,0.2,85.94,85.931,0.49712907]
[1771066901848,11.83473964,85.95,85.933,0.47381932]
[1771066901849,0.2,85.95,85.933,0.47381932]
[1771066902025,0.2,85.95,85.941,0.47381932]
[1771066902349,0.2,85.96,85.942,0.47381932]
[1771066903149,0.2,85.96,85.95,3.47452662]
[1771066903340,0.2,85.96,85.951,0.47381932]
[1771066904846,0.66862332,85.96,85.944,0.47381932]
[1771066905347,0.46862332,85.959,85.944,0.47381932]
[1771066906636,0.46862332,85.959,85.945,0.47381932]
[1771066906848,0.2,85.96,85.945,0.47381932]
[1771066911527,0.2,85.96,85.946,0.47381932]
[1771066912125,0.46862332,85.969,85.951,0.47381932]
[1771066912339,0.2,85.97,85.951,0.47381932]
[1771066912957,0.2,85.97,85.952,11.63440059]
[1771066913129,0.2,85.97,85.953,0.47381932]
[1771066913445,0.46862332,85.988,85.962,0.47381932]
[1771066914256,0.46862332,85.979,85.957,0.47381932]
[1771066914450,0.46862332,85.978,85.941,92.91576086]
[1771066914659,0.46862332,85.978,85.942,0.47381932]
[1771066915138,0.46862332,85.976,85.942,0.47381932]
[1771066915330,0.46862332,85.976,85.943,11.63561895]
[1771066915530,0.46862332,85.976,85.944,0.47381932]
[1771066917227,0.46862332,85.974,85.946,0.47381932]
[1771066918445,0.46862332,85.974,85.941,0.47381932]
[1771066919453,0.46862332,85.972,85.943,0.47381932]
[1771066921152,0.46862332,85.972,85.931,0.46866677]
[1771066921653,0.47240564,85.969,85.933,0.46866677]
[1771066924264,11.63223525,85.968,85.934,11.63683757]
[1771066924438,0.47240564,85.967,85.935,0.46866677]
[1771066925151,0.47240564,85.967,85.93,0.46866677]
[1771066926257,54.6,85.971,85.919,29.09700442]
[1771066926258,0.47240564,85.959,85.924,11.6380839]
[1771066926450,0.47240564,85.959,85.925,0.46866677]
[1771066928057,0.47240564,85.957,85.925,0.46866677]
[1771066928260,0.47240564,85.957,85.927,0.46866677]
[1771066929759,12.1055751,85.962,85.931,0.46866677]
[1771066930059,0.47240564,85.961,85.931,0.46866677]
[1771066931177,0.47240564,85.959,85.925,0.46866677]
[1771066931661,0.47240564,85.959,85.924,11.6381725]
[1771066931859,0.47240564,85.957,85.924,0.46866677]
[1771066936082,3.46756195,85.96,85.924,0.46866677]
[1771066936083,0.47240564,85.955,85.924,0.46866677]
[1771066936573,0.47240564,85.955,85.926,0.46866677]
[1771066937475,0.47240564,85.949,85.91,0.46866677]
[1771066938353,0.47240564,85.947,85.912,0.46866677]
[1771066939868,0.47240564,85.947,85.911,11.63995297]
[1771066940068,0.47240564,85.945,85.911,11.63995297]
[1771066940474,0.47240564,85.945,85.912,0.46866677]
[1771066940862,0.47240564,85.939,85.907,0.46866677]
[1771066941066,0.47240564,85.929,85.902,0.46866677]
[1771066942657,0.47240564,85.929,85.89,32.5744262]
[1771066942658,0.47240564,85.927,85.904,0.46866677]
[1771066942859,0.47240564,85.927,85.896,11.64188875]
[1771066943059,0.47240564,85.919,85.896,11.64188875]
[1771066943481,0.47240564,85.919,85.896,12.11055552]
[1771066944077,0.47240564,85.919,85.897,0.46866677]
[1771066950479,0.47240564,85.917,85.897,0.46866677]
[1771066960187,0.47081006,85.915,85.897,0.46866677]
[1771066962584,11.63954652,85.914,85.897,0.46866677]
[1771066962771,0.4623585,85.913,85.897,0.46866677]
[1771066962975,0.4623585,85.909,85.885,0.47111609]
[1771066964786,0.4623585,85.909,85.886,0.47111609]
[1771066965191,0.4623585,85.907,85.886,0.47111609]
[1771066966477,0.4623585,85.917,85.886,0.47111609]
[1771066967579,11.63846279,85.922,85.888,0.47111609]
[1771066967876,11.63846279,85.922,85.891,0.47111609]
[1771066968279,0.4623585,85.921,85.891,0.47111609]
[1771066970399,11.6387337,85.92,85.893,0.47111609]
[1771066971085,12.1010922,85.92,85.893,0.47111609]
[1771066974087,12.1010922,85.92,85.894,11.64225673]
[1771066974294,12.1010922,85.92,85.895,0.47111609]
[1771066974697,0.4623585,85.919,85.895,0.47111609]
[1771066977397,0.4623585,85.919,85.897,0.47111609]
[1771066977986,11.6387337,85.92,85.897,0.47111609]
[1771066978187,0.4623585,85.919,85.897,0.47111609]
[1771066980005,54.74,85.934,85.883,29.10928867]
[1771066980006,0.4623585,85.949,85.911,0.47111609]
[1771066982002,12.10378324,85.948,85.913,0.4848921]
[1771066982315,0.46884119,85.947,85.913,0.4848921]
[1771066983284,0.46884119,85.945,85.921,0.4848921]
[1771066985901,29.08557764,85.954,85.921,0.4848921]
[1771066985902,0.46884119,85.943,85.921,0.4848921]
[1771066986410,11.63548357,85.944,85.921,0.4848921]
[1771066986803,11.63426523,85.953,85.931,0.4848921]
[1771066987296,0.46884119,85.952,85.931,0.4848921]
[1771066987999,54.8,85.962,85.931,0.4848921]
[1771066988000,0.46884119,85.956,85.931,0.4848921]
[1771066988196,11.63318248,85.961,85.932,0.4848921]
[1771066988197,12.10202367,85.961,85.932,0.4848921]
[1771066989314,11.63318248,85.961,85.941,0.4848921]
[1771066990596,11.63192371,85.971,85.951,0.4848921]
[1771066990811,12.1007649,85.971,85.951,0.4848921]
[1771066991113,0.46884119,85.97,85.951,0.4848921]
[1771066991492,0.2,85.98,85.961,0.4848921]
[1771066991700,0.46884119,85.979,85.961,0.4848921]
[1771066992096,0.2,85.98,85.961,0.4848921]
[1771066996020,0.2,85.98,85.96,3.47348325]
[1771066996215,0.66884119,85.98,85.96,3.47348325]
[1771066996908,0.46884119,85.979,85.96,3.47348325]
[1771066997996,0.46884119,85.979,85.96,3.95837535]
[1771066998399,0.46884119,85.977,85.96,0.4848921]
[1771066999007,0.46884119,85.977,85.961,0.4848921]
[1771066999522,0.46884119,85.979,85.961,0.4848921]
[1771067006025,0.46884119,85.978,85.95,3.47348325]
[1771067006320,0.46884119,85.978,85.951,0.4848921]
[1771067008028,0.46884119,85.967,85.932,0.4848921]
[1771067008226,0.46884119,85.967,85.93,11.63736191]
[1771067008531,0.46884119,85.967,85.931,0.4848921]
[1771067011428,0.46884119,85.959,85.921,0.4848921]
[1771067011623,0.48137447,85.957,85.921,11.63858152]
[1771067012117,0.48137447,85.957,85.921,12.1350593]
[1771067012429,0.48137447,85.957,85.922,0.49647778]
[1771067013213,40.71755973,85.958,85.922,0.49647778]
[1771067013214,0.48137447,85.955,85.922,0.49647778]
[1771067015717,0.48137447,85.953,85.922,0.49647778]
[1771067019317,0.48137447,85.951,85.922,0.49647778]
[1771067020319,0.48137447,85.951,85.924,0.46861991]
[1771067020519,0.48137447,85.951,85.931,0.46861991]
[1771067021252,12.08998202,85.95,85.931,0.46861991]
[1771067021529,11.63467132,85.95,85.931,0.46861991]
[1771067023040,11.63382551,85.957,85.933,0.46861991]
[1771067023236,11.63382551,85.957,85.941,0.46861991]
[1771067026417,0.4553107,85.957,85.941,0.46861991]
[1771067030138,0.4553107,85.955,85.933,0.46861991]
[1771067034628,0.4553107,85.955,85.933,0.46861991]
[1771067041854,0.48449708,85.953,85.921,0.49713883]
[1771067043660,0.48449708,85.951,85.922,0.49713883]
[1771067046657,0.48449708,85.949,85.93,3.96531855]
[1771067046961,0.48449708,85.949,85.931,0.49713883]
[1771067048555,11.63494205,85.948,85.931,0.49713883]
[1771067048750,0.48449708,85.947,85.913,11.63966597]
[1771067049470,0.48449708,85.947,85.913,12.1368048]
[1771067049663,0.48449708,85.947,85.914,0.49713883]
[1771067049966,0.48449708,85.945,85.909,11.64018463]
[1771067050169,0.48449708,85.939,85.904,0.49713883]
[1771067051346,0.48449708,85.937,85.904,0.49713883]
[1771067051863,0.48449708,85.937,85.903,11.64096074]
[1771067052447,0.48449708,85.937,85.904,0.49713883]
[1771067052971,0.48449708,85.937,85.91,3.46817972]
[1771067053264,0.48449708,85.935,85.911,0.49713883]
[1771067055255,12.12133465,85.934,85.911,0.49713883]
[1771067055658,0.48449708,85.944,85.913,0.49713883]
[1771067055866,0.48449708,85.948,85.921,0.49713883]
[1771067056966,0.48449708,85.948,85.931,0.49713883]
[1771067057149,11.63482156,85.949,85.931,0.49713883]
[1771067058361,55.22,85.962,85.931,0.49713883]
[1771067058362,11.63383353,85.957,85.931,0.49713883]
[1771067058572,11.63383353,85.957,85.941,0.49713883]
[1771067059361,66.85313855,85.962,85.941,0.49713883]
[1771067059562,11.63313855,85.962,85.941,0.49713883]
[1771067061578,0.48449708,85.962,85.941,0.49713883]
[1771067062675,11.63250587,85.966,85.942,0.49713883]
[1771067062856,0.48449708,85.965,85.942,0.49713883]
[1771067067965,0.48449708,85.979,85.951,0.49713883]
[1771067069486,0.48449708,85.978,85.951,0.49713883]
[1771067069685,11.63101759,85.977,85.951,0.49713883]
[1771067069984,0.48449708,85.976,85.951,0.49713883]
[1771067071087,0.48449708,85.976,85.951,0.49713883]
[1771067072185,0.45790735,85.974,85.951,0.49713883]
[1771067074505,11.63155874,85.973,85.951,0.49713883]
[1771067074689,0.45790735,85.972,85.951,0.49713883]
[1771067075797,11.63155874,85.973,85.951,0.49713883]
[1771067075996,0.45790735,85.972,85.951,0.49713883]
[1771067076592,0.45790735,85.976,85.951,0.49713883]
[1771067077405,0.45790735,85.976,85.952,0.4545501]
[1771067080710,0.2,85.98,85.961,0.46605011]
[1771067080894,0.47778014,85.979,85.961,0.46605011]
[1771067081606,0.2,85.98,85.961,0.46605011]
[1771067082312,11.63088231,85.978,85.961,0.46605011]
[1771067083004,0.47778014,85.979,85.961,0.46605011]
[1771067083617,0.2,85.98,85.962,0.46605011]
[1771067084725,0.2,85.99,85.962,0.46605011]
[1771067085205,0.67778014,85.99,85.962,0.46605011]
[1771067085523,0.47778014,85.989,85.962,0.46605011]
[1771067086415,11.82926419,85.99,85.98,3.46817972]
[1771067086416,0.2,85.99,85.98,3.46817972]
[1771067086601,0.2,85.99,85.981,0.46605011]
[1771067087205,0.2,85.99,85.976,0.46605011]
[1771067088523,0.47778014,85.988,85.971,0.46605011]
[1771067089306,0.2,85.99,85.973,0.46605011]
[1771067089909,0.47778014,85.989,85.973,0.46605011]
[1771067091226,0.2,85.99,85.973,0.46605011]
[1771067091415,11.62939445,85.989,85.97,3.46483031]
[1771067091618,0.47778014,85.988,85.966,0.46605011]
[1771067092728,11.62966494,85.987,85.966,0.46605011]
[1771067092904,0.47778014,85.986,85.966,0.46605011]
[1771067093105,0.47778014,85.986,85.961,12.09922566]
[1771067093308,0.47778014,85.986,85.962,0.46605011]
[1771067093812,0.47778014,85.986,85.951,0.46605011]
[1771067095511,0.47778014,85.984,85.952,0.46605011]
[1771067095707,0.47778014,85.984,85.951,11.63453595]
[1771067096708,0.47778014,85.984,85.951,12.10058606]
[1771067097107,0.47778014,85.982,85.952,0.46605011]
[1771067098817,0.47778014,85.979,85.951,11.63453595]
[1771067099033,0.47778014,85.979,85.951,12.10058606]
[1771067099529,29.07416237,85.987,85.951,12.10058606]
[1771067099530,0.47778014,85.977,85.951,0.46605011]
[1771067099835,0.47778014,85.977,85.951,12.10053401]
[1771067100417,0.47778014,85.977,85.952,0.46605011]
[1771067102630,0.4917052,85.975,85.952,0.46605011]
[1771067110339,0.4917052,85.975,85.954,0.49276576]
[1771067112338,0.4917052,85.975,85.953,11.63426523]
[1771067112524,0.4917052,85.973,85.944,0.49276576]
[1771067113454,0.4917052,85.973,85.933,0.49276576]
[1771067113629,0.4917052,85.969,85.935,0.49276576]
[1771067114832,0.4917052,85.967,85.935,0.49276576]
[1771067115321,0.4917052,85.967,85.937,0.49276576]
[1771067117749,11.63250587,85.966,85.937,0.49276576]
[1771067117916,0.4917052,85.965,85.937,0.49276576]
[1771067118942,0.4917052,85.965,85.939,0.49276576]
[1771067119140,0.4917052,85.97,85.941,0.49276576]
[1771067120052,0.4917052,85.97,85.94,3.46483031]
[1771067120053,0.4917052,85.97,85.943,0.49276576]
[1771067123654,0.4917052,85.968,85.945,0.49276576]
[1771067127555,0.4917052,85.966,85.945,0.49276576]
[1771067130558,0.4917052,85.964,85.944,11.63545712]
[1771067132640,0.4917052,85.964,85.944,0.49276576]
[1771067134061,0.4917052,85.964,85.933,0.49276576]
[1771067135359,0.4917052,85.964,85.935,0.49276576]
[1771067137661,0.4917052,85.964,85.937,0.49276576]
[1771067139170,11.6321405,85.969,85.939,0.49276576]
[1771067139568,0.45347441,85.968,85.941,0.49276576]
[1771067141161,0.45347441,85.968,85.943,0.49246142]
[1771067143259,0.47271579,85.966,85.944,11.63548357]
[1771067143466,0.47271579,85.966,85.945,0.49246142]
[1771067157482,0.47271579,85.966,85.94,0.49246142]
[1771067160272,0.47271579,85.966,85.942,0.49246142]
[1771067161476,0.46092855,85.959,85.911,0.47707266]
[1771067161684,11.63264119,85.965,85.911,0.47707266]
[1771067161685,0.46092855,85.949,85.911,0.47707266]
[1771067161862,0.46092855,85.939,85.907,29.57809415]
[1771067162265,0.46092855,85.939,85.907,0.47707266]
[1771067162888,0.46092855,85.939,85.91,3.46826655]
[1771067163074,0.46092855,85.939,85.911,0.47707266]
[1771067163877,0.46092855,85.939,85.913,0.47707266]
[1771067164876,0.46092855,85.939,85.915,0.47707266]
[1771067167491,0.46092855,85.939,85.916,11.63927557]
[1771067167667,0.46092855,85.939,85.917,0.47707266]
[1771067170175,0.46092855,85.948,85.921,0.47707266]
[1771067170376,0.46092855,85.953,85.931,0.47707266]
[1771067172372,0.46092855,85.952,85.931,0.47707266]
[1771067173594,0.46092855,85.968,85.941,0.47707266]
[1771067175594,0.46092855,85.966,85.941,0.47707266]
[1771067181505,0.46092855,85.966,85.943,0.47707266]
[1771067182001,11.63264119,85.965,85.943,0.47707266]
[1771067182203,0.46092855,85.964,85.943,0.47707266]
[1771067185403,11.63291183,85.963,85.943,0.47707266]
[1771067185601,0.46092855,85.962,85.943,0.47707266]
[1771067189208,0.46092855,85.976,85.951,0.47707266]
[1771067190408,0.46092855,85.974,85.951,0.47707266]
[1771067194393,11.63155874,85.973,85.951,0.47707266]
[1771067194596,0.46289623,85.972,85.951,0.47707266]
[1771067198618,0.46289623,85.972,85.953,0.48710192]
[1771067199909,0.46289623,85.972,85.954,11.63412988]
[1771067201017,0.46289623,85.972,85.955,0.45090963]
[1771067204614,0.46289623,85.972,85.951,0.45090963]
[1771067204817,0.49166575,85.97,85.941,0.45090963]
[1771067205403,0.49166575,85.97,85.95,3.46826655]
[1771067205817,0.49166575,85.97,85.951,0.45090963]
[1771067210719,0.49166575,85.968,85.951,0.45090963]
[1771067214633,56.54,85.979,85.953,0.45090963]
[1771067214634,0.49166575,85.978,85.953,0.45090963]
[1771067215719,0.49166575,85.978,85.95,3.46723649]
[1771067215720,0.2,85.99,85.971,0.45090963]
[1771067216408,11.8293369,85.99,85.98,3.46723649]
[1771067217039,0.2,85.99,85.981,0.45090963]
[1771067217244,0.1,86.0,85.982,0.45090963]
[1771067217526,0.1,86.0,85.99,3.91814612]
[1771067217733,0.1,86.0,85.991,0.45090963]
[1771067218523,12.11868428,86.007,85.991,0.45090963]
[1771067219426,0.49166575,86.011,85.991,0.45090963]
[1771067220824,0.59166575,86.01,85.991,0.45090963]
[1771067221227,0.59166575,86.01,85.981,0.49276576]
[1771067222248,0.47808309,86.008,85.981,0.49276576]
[1771067222932,0.47808309,86.008,85.981,11.6304765]
[1771067223444,0.47808309,86.008,85.981,12.12324226]
[1771067224231,0.47808309,86.006,85.981,12.12324226]
[1771067224538,0.47808309,86.006,85.982,0.49276576]
[1771067230644,0.47808309,86.006,85.984,0.49276576]
[1771067232430,0.47808309,86.006,85.986,0.49276576]
[1771067232638,0.47808309,86.006,85.985,11.62993545]
[1771067232639,0.1,86.01,85.991,0.49276576]
[1771067234417,0.1,86.01,85.993,0.49276576]
[1771067236445,0.1,86.01,85.99,3.46723649]
[1771067236446,0.1,86.01,85.995,0.49276576]
[1771067239244,0.1,86.02,86.001,0.39276576]
[1771067239630,0.1,86.02,85.975,11.63128816]
[1771067239631,0.47808309,86.018,85.975,11.63128816]
[1771067239838,0.47808309,86.018,85.976,0.39276576]
[1771067241247,40.68868504,86.019,85.978,0.39276576]
[1771067241248,0.47808309,86.016,85.978,0.39276576]
[1771067242353,0.47808309,86.014,85.98,0.39276576]
[1771067243847,0.47808309,86.012,85.982,0.39276576]
[1771067244626,0.47808309,86.012,85.991,0.39276576]
[1771067249453,11.72520344,86.02,85.991,0.39276576]
[1771067249753,0.47808309,86.019,85.991,0.39276576]
[1771067250667,0.47808309,86.017,85.993,0.39276576]
[1771067252058,0.1,86.02,85.993,0.39276576]
[1771067252059,0.48152622,86.015,85.993,0.39276576]
[1771067252364,0.48152622,86.015,85.981,12.02324226]
[1771067252540,0.48152622,86.015,85.982,0.39276576]
[1771067253352,0.48152622,86.015,85.991,0.39276576]
[1771067253850,11.62533858,86.019,85.991,0.39276576]
[1771067254061,11.62533858,86.019,85.993,0.39276576]